Cogmind - Beta 10.2 @@@ ROGUE MODE // 2020.11.20 @ 17:12:45 // Halloween2020/ForbiddenLore Player: blelm Result: Self-destructed Performance ------------- Evolutions (4) 2000 Regions Visited (9) 1800 Robots Destroyed (167) 835 Value Destroyed (4863) 4863 Prototype IDs (12) 240 Alien Tech Used (0) 0 Bonus (438) 438 TOTAL SCORE: 10176 Bonus ------- High Alert Combat Kills 524 Follower Combat Kills 529 Friendly Fire -615 Cogmind --------- Core Integrity 850/850 Matter 169/300 Energy 150/150 System Corruption 0% Temperature Cool (0) Movement Hovering (68) Location -6/Factory Parts ------- > --- POWER (1) -------- Light Angular Momentum Engine > --- PROPULSION (4) --- Combat Airjet Combat Airjet Combat Airjet Combat Airjet > --- UTILITY (8) ------ Medium Storage Unit Large Storage Unit Large Storage Unit Experimental Sensor Array Improved Signal Interpreter Improved Medium Armor Plating Hacking Suite Hacking Suite > --- WEAPON (2) ------- Missile Launcher Spear > --- INVENTORY (20) --- Light Nuclear Core Heavy Treads Improved Cooling System High-capacity Matter Pod (200) Hardened Heavy Armor Plating Damper Plating Improved Powered Armor Hacking Suite Thief Drone Bay (3/3) Proton Cannon Advanced EMP Blaster Heavy Hammer Peak State ------------ > --- POWER ------------ Light Angular Momentum Engine > --- PROPULSION ------- Combat Airjet Combat Airjet Combat Airjet Combat Airjet > --- UTILITY ---------- Medium Storage Unit Large Storage Unit Large Storage Unit Experimental Sensor Array Improved Signal Interpreter Improved Medium Armor Plating Hacking Suite Hacking Suite > --- WEAPON ----------- Proton Cannon Spear > --- INVENTORY -------- Light Nuclear Core Heavy Treads Improved Cooling System High-capacity Matter Pod Hardened Heavy Armor Plating Damper Plating Improved Powered Armor Hacking Suite Thief Drone Bay Advanced EMP Blaster Missile Launcher Heavy Hammer [Rating: 62] Favorites ----------- Power Heavy Ion Engine Engine Heavy Ion Engine Propulsion Light Treads Treads Light Treads Leg Aluminum Leg Wheel Armored Wheel Hover Unit Combat Airjet Utility Large Storage Unit Device Experimental Sensor Array Storage Large Storage Unit Processor Improved Signal Interpreter Hackware Hacking Suite Protection Medium Armor Plating Weapon Heavy Assault Rifle Energy Gun Heavy EM Pulse Gun Energy Cannon Proton Cannon Ballistic Gun Heavy Assault Rifle Ballistic Cannon Light Cannon Launcher Advanced EMP Blaster Special Weapon Mining Laser Impact Weapon Heavy Hammer Slashing Weapon Greatsword Piercing Weapon Spear Build | -11 -10 -10 -9 -9 -8 -7 -7 -7 -6 ------- Run | Scr Mat Min Mat Min Mat Fac Was Fac Fac Slots Evolved 8 | . . . 2 . 2 2 . . 2 Power . | . . . . . . . . . . Propulsion 2 | . . . . . 1 . . . 1 Utility 6 | . . . 2 . 1 2 . . 1 Weapon . | . . . . . . . . . . Parts Attached 170 | 4 9 11 18 13 43 13 12 38 9 Power 10 | . 2 1 2 . 1 1 . 3 . Engine 10 | . 2 1 2 . 1 1 . 3 . Core . | . . . . . . . . . . Reactor . | . . . . . . . . . . Propulsion 37 | 2 2 3 5 . 15 2 2 2 4 Treads 22 | 1 . 3 4 . 11 1 1 1 . Leg . | . . . . . . . . . . Wheel 10 | 1 2 . 1 . 4 1 . 1 . Hover 5 | . . . . . . . 1 . 4 Flight . | . . . . . . . . . . Utility 55 | 1 2 . 6 3 8 8 3 23 1 Device 14 | . . . 1 1 2 2 . 8 . Storage 5 | 1 2 . 1 . . . 1 . . Processor 2 | . . . . . 1 . . 1 . Hackware 3 | . . . . . . 3 . . . Protection 31 | . . . 4 2 5 3 2 14 1 Artifact . | . . . . . . . . . . Weapon 68 | 1 3 7 5 10 19 2 7 10 4 Energy Gun 4 | . . . . . . . 4 . . Energy Cannon 1 | . . . . . . . . . 1 Ballistic Gun 31 | 1 2 5 3 5 13 1 1 . . Ballistic Cannon 5 | . 1 . 1 . . 1 2 . . Launcher 17 | . . 2 1 3 6 . . 3 2 Special Weapon 2 | . . . . 2 . . . . . Impact Weapon 1 | . . . . . . . . 1 . Slashing Weapon 5 | . . . . . . . . 5 . Piercing Weapon 2 | . . . . . . . . 1 1 Special Melee Weapon . | . . . . . . . . . . Unidentified Prototypes 5 | . . . 1 1 1 . 2 . . Parts Lost 24 | . 2 2 1 1 9 1 2 6 . Power 5 | . 1 . . . 1 . . 3 . Propulsion 4 | . 1 1 . . 2 . . . . Utility 8 | . . . 1 . 4 . 2 1 . Weapon 7 | . . 1 . 1 2 1 . 2 . Highest Loss Streak 2 | . 2 1 1 1 2 1 1 2 . Average Slot Usage (%) 95 | . 99 99 99 100 97 98 86 87 98 Engine 9 | . 13 13 10 11 8 7 7 6 6 Treads 11 | . 14 13 11 11 18 19 6 7 . Wheel 9 | . 13 14 11 11 8 1 7 6 . Device 3 | . . . . . 3 6 7 6 6 Storage 27 | . 28 28 33 33 27 23 22 23 20 Hackware 5 | . . . . . . 12 16 15 13 Protection 7 | . . . 11 11 11 10 2 6 6 Ballistic Gun 13 | . 21 25 20 18 17 8 3 . . Ballistic Cannon 1 | . 6 . 1 . . 5 2 . . Slashing Weapon 1 | . . . . . . . . 5 . Piercing Weapon 1 | . . . . . . . . 3 5 Naked Turns . | . . . . . . . . . . Heaviest Build 79 | 17 42 45 72 72 74 79 69 77 69 Greatest Support 88 | 10 16 20 20 12 84 84 28 28 88 Greatest Overweight (x) 5 | 1 4 2 5 5 3 2 2 3 . Average Overweight (x) 2 | 1 2 2 3 5 1 . 1 1 . Largest Inventory Capacity 22 | 8 16 16 22 22 22 22 22 20 20 Average Capacity 20 | 6 15 16 21 22 22 22 19 20 20 Most Carried 22 | 6 13 16 22 22 22 22 22 20 20 Average Carried 18 | 4 7 15 21 21 20 21 19 19 16 Final Capacity 22 | 8 16 16 22 22 22 22 20 20 20 Final Carried 22 | 4 13 16 22 22 21 22 20 20 16 Class Distribution -------------------- 49% | Hauler-Mutant 34% | Hacker-Mutant 11% | Mutant 4% | Scavenger-Mutant Dominant Class ---------------- Mutant | -10/Materials Scavenger-Mutant | -10/Mines Hauler-Mutant | -9/Materials Hauler-Mutant | -9/Mines Hauler-Mutant | -8/Materials Hauler-Mutant | -7/Factory Hacker-Mutant | -7/Waste Hacker-Mutant | -7/Factory Hacker-Mutant | -6/Factory Resources | -11 -10 -10 -9 -9 -8 -7 -7 -7 -6 ----------- Run | Scr Mat Min Mat Min Mat Fac Was Fac Fac Matter Collected 4028 | 248 451 336 622 339 1256 81 234 440 21 Remotely . | . . . . . . . . . . Salvage Created 6314 | 63 576 482 1145 525 1942 109 37 1359 76 Parts 366 | 2 29 25 84 36 103 7 5 68 7 Haulers Intercepted 8 | . 1 . 2 . 4 . . 1 . Recyclers Shooed 4 | . . 1 1 . 2 . . . . Parts Field Recycled . | . . . . . . . . . . Retrieved Matter . | . . . . . . . . . . Parts Self-Destructed . | . . . . . . . . . . Prevented . | . . . . . . . . . . Kills | -11 -10 -10 -9 -9 -8 -7 -7 -7 -6 ------- Run | Scr Mat Min Mat Min Mat Fac Was Fac Fac Combat Hostiles Destroyed 122 | . 11 11 26 14 34 2 . 20 4 Melee 15 | . . . . . . . . 15 . Guns 71 | . 10 4 23 4 29 1 . . . Cannons 2 | . 1 . . . . 1 . . . AOE 33 | . . 7 3 10 5 . . 4 4 Classes Destroyed 16 | 1 3 2 4 2 . . 1 3 . Worker 9 | . . . 1 . 1 . . 5 2 Builder 3 | . . . . 1 2 . . . . Tunneler 8 | . . . 2 5 . . . 1 . Hauler 8 | . 1 . 2 . 4 . . 1 . Recycler 6 | 1 . 1 . 1 1 . . 2 . Mechanic 1 | . . . . . . . . 1 . Operator 4 | . . . 1 . 3 . . . . Watcher 5 | . 2 . 2 . . . . 1 . Swarmer 32 | . . 5 8 7 8 . . . 4 Grunt 63 | . 11 4 10 5 22 . . 11 . Brawler 1 | . . . 1 . . . . . . Duelist 2 | . . . . . . . . 2 . Sentry 16 | . . 2 7 . 5 2 . . . Programmer 7 | . . . . . . . . 7 . Assembled 2 | . . . . 2 . . . . . Thug 1 | . . . . . . . 1 . . Martyr 1 | . . . . . . . 1 . . Best Kill Streak 10 | 1 4 4 5 10 6 1 . 6 6 Combat Bots Only 7 | . 4 3 5 7 6 1 . 4 4 Max Kills in Single Turn 3 | 1 1 2 3 3 2 1 2 2 3 Gunslinging 1 | . . . . . 1 . . . . Exploded 3 | . . 2 2 2 2 . . 2 3 Melee 1 | . . . . . . . . 1 . Uniques/NPCs Destroyed . | . . . . . . . . . . Combat | -11 -10 -10 -9 -9 -8 -7 -7 -7 -6 -------- Run | Scr Mat Min Mat Min Mat Fac Was Fac Fac Damage Taken 7030 | . 903 324 885 263 2487 304 99 1597 168 Core 715 | . 173 52 141 12 217 . 42 78 . Absorbed by Shields . | . . . . . . . . . . Core Remaining (%) 62 | 100 . 10 . 61 60 . . 82 . Volleys Fired 355 | 3 45 20 81 35 151 9 2 7 2 Largest 2 | 2 2 2 2 2 2 2 2 1 2 Hottest 100 | 40 55 40 62 100 72 71 90 48 72 Shots Fired 656 | 6 90 27 158 50 292 18 4 7 4 Gun 568 | 6 72 14 147 31 283 11 4 . . Cannon 33 | . 18 . 7 . . 7 . 1 . Launcher 48 | . . 13 4 12 9 . . 6 4 Special 7 | . . . . 7 . . . . . Kinetic 597 | 6 90 14 154 31 283 18 . 1 . Thermal 7 | . . . . 7 . . . . . Explosive 2 | . . . . . . . . . 2 Electromagnetic 50 | . . 13 4 12 9 . 4 6 2 Robot Hit Streak 15 | 4 15 9 15 8 15 12 10 11 1 Robot Miss Streak 5 | 1 3 2 5 1 5 1 . 1 2 Penetration Max . | . . . . . . . . . . Secondary Targets 7 | . . . 2 . 5 . . . . Max Gunslinging Chain 1 | . . . 1 . 1 . . . . Shots Hit Robots 512 | 5 67 18 101 24 216 16 4 60 1 Core Hits 242 | 2 26 17 44 25 80 6 2 34 6 Critical Hits 6 | . 1 . 2 . 1 1 . 1 . Critical Kills 2 | . 1 . . . . . . 1 . Critical Parts Destroyed 4 | . . . 2 . 1 1 . . . Melee Attacks 99 | . . . . . . . . 96 3 Impact . | . . . . . . . . . . Slashing 54 | . . . . . . . . 54 . Piercing 45 | . . . . . . . . 42 3 Sneak Attacks 11 | . . . . . . . . 11 . Combat Hostiles . | . . . . . . . . . . Follow-up Attacks 4 | . . . . . . . . 4 . Damage Inflicted 12966 | 57 937 557 1850 905 3808 319 213 3977 343 Guns 5953 | 57 673 138 1522 308 3099 152 4 . . Cannons 508 | . 230 . 111 . . 167 . . . Explosions 3399 | . . 419 217 544 676 . 209 991 343 Melee 2986 | . . . . . . . . 2986 . Ramming 72 | . 34 . . 5 33 . . . . Kinetic 6457 | 57 903 138 1633 308 3099 319 . . . Thermal 1394 | . . . 22 144 169 . 209 684 166 Explosive 92 | . . . . . . . . . 92 Electromagnetic 1965 | . . 419 195 448 507 . 4 307 85 Impact . | . . . . . . . . . . Slashing 1769 | . . . . . . . . 1769 . Piercing 1217 | . . . . . . . . 1217 . Highest Corruption 7 | . 7 7 . . 2 . . 5 . Average Corruption 4 | . 6 7 . . 1 . . 4 . Corruption Purged . | . . . . . . . . . . Effects 87 | . 12 21 . . 12 . . 42 . Message Errors 22 | . 2 4 . . 5 . . 11 . Matter Fused 18 | . 1 5 . . . . . 12 . Heat Flow Errors 12 | . 2 2 . . . . . 8 . Energy Discharges 13 | . 1 3 . . 1 . . 8 . Data Loss (minor) 6 | . 1 3 . . 2 . . . . Data Loss (major) 2 | . . . . . . . . 2 . Misfires 2 | . 1 1 . . . . . . . Targeting Errors 11 | . 3 3 . . 4 . . 1 . Weapon Failures 1 | . 1 . . . . . . . . Overload Shots . | . . . . . . . . . . Overflow Damage 599 | . . . 5 . 18 . . 576 . Projectiles 5 | . . . 5 . . . . . . Explosions 198 | . . . . . 18 . . 180 . Melee 396 | . . . . . . . . 396 . Knockbacks 13 | . 8 . 4 . 1 . . . . Impact 1 | . . . . . 1 . . . . Kinetic 11 | . 8 . 3 . . . . . . Secondary 1 | . . . 1 . . . . . . Self-Inflicted Damage 413 | . 15 89 . 21 104 . . 35 149 Shots 21 | . . 9 . 3 4 . . 2 3 Rammed 14 | . 7 . . 1 6 . . . . Targets Rammed 14 | . 7 . . 1 6 . . . . Kicked . | . . . . . . . . . . Crushed . | . . . . . . . . . . Highest Temperature 270 | . 251 192 12 72 57 16 9 270 20 Average Temperature 31 | . 47 54 3 18 17 7 6 84 16 Received Heat Transfer 2445 | . 504 69 306 60 1107 84 9 306 . Siege Activations . | . . . . . . . . . . Robots Corrupted 1 | . . . . . . . . 1 . Combat Hostiles 1 | . . . . . . . . 1 . Parts Fried 8 | . . . 1 3 2 . . 2 . Impact Corruptions 1 | . . . 1 . . . . . . Robots Melted . | . . . . . . . . . . Combat Hostiles . | . . . . . . . . . . Parts Melted 1 | . . . . . . . . 1 . Heat Transferred 1500 | . . . 50 300 250 . 150 600 150 Parts Sabotaged . | . . . . . . . . . . Parts Stolen . | . . . . . . . . . . Parts Stripped . | . . . . . . . . . . Power Chain Reactions 14 | . . . 1 4 3 . 1 2 3 Missiles Intercepted . | . . . . . . . . . . Alert | -11 -10 -10 -9 -9 -8 -7 -7 -7 -6 ------- Run | Scr Mat Min Mat Min Mat Fac Was Fac Fac Peak Influence 813 | 5 159 249 580 404 744 406 181 813 641 Initial 375 | . 3 19 44 226 57 318 142 . 375 Average 275 | 1 73 142 245 279 439 371 85 305 465 Maximum Alert Level 3 | . . 1 2 2 3 2 . 3 2 Low Security (%) 46 | 100 100 62 48 3 19 . 100 56 . Level 1 24 | . . 37 31 81 24 74 . . 56 Level 2 21 | . . . 19 15 40 25 . 27 43 Level 3 7 | . . . . . 16 . . 16 . Level 4 . | . . . . . . . . . . Level 5 . | . . . . . . . . . . High Security . | . . . . . . . . . . Max Security . | . . . . . . . . . . Squads Dispatched 27 | . 3 . 4 . 8 . . 12 . Investigation 10 | . 3 . . . 2 . . 5 . Extermination 6 | . . . . . . . . 6 . Reinforcement 9 | . . . 4 . 5 . . . . Assault 2 | . . . . . 1 . . 1 . Garrison . | . . . . . . . . . . Intercept . | . . . . . . . . . . Construction Impeded . | . . . . . . . . . . Haulers Reinforced . | . . . . . . . . . . Stealth | -11 -10 -10 -9 -9 -8 -7 -7 -7 -6 --------- Run | Scr Mat Min Mat Min Mat Fac Was Fac Fac Distress Signals 7 | . . . 2 . 5 . . . . Communications Jammed . | . . . . . . . . . . Distress Signals . | . . . . . . . . . . Times Spotted 199 | . 16 11 45 20 63 2 7 33 2 Peak Tracking Total 6 | . 4 3 5 5 6 1 5 5 3 Tactical Retreats 15 | . 1 . 4 . 6 . 1 3 . Traps | -11 -10 -10 -9 -9 -8 -7 -7 -7 -6 ------- Run | Scr Mat Min Mat Min Mat Fac Was Fac Fac Traps Triggered 17 | . 6 . . . 4 1 . 6 . Indirectly . | . . . . . . . . . . Trap Hack Attempts . | . . . . . . . . . . Triggered . | . . . . . . . . . . Disarmed . | . . . . . . . . . . Reprogrammed . | . . . . . . . . . . Reused . | . . . . . . . . . . Traps Extracted . | . . . . . . . . . . Installed . | . . . . . . . . . . Triggered . | . . . . . . . . . . Machines | -11 -10 -10 -9 -9 -8 -7 -7 -7 -6 ---------- Run | Scr Mat Min Mat Min Mat Fac Was Fac Fac Machines Disabled 28 | . . 4 1 3 5 . . 6 9 Max in Single Turn 8 | . . 2 1 1 2 . . 4 8 Garrison Access 1 | . . . . . 1 . . . . Machines Sabotaged . | . . . . . . . . . . Garrisons Compromised . | . . . . . . . . . . Overloaded Fab Kills . | . . . . . . . . . . Fab Network Shutdowns 1 | . . . . . . . . 1 . Hacking | -11 -10 -10 -9 -9 -8 -7 -7 -7 -6 --------- Run | Scr Mat Min Mat Min Mat Fac Was Fac Fac Machines Accessed 31 | . 7 1 2 . 8 1 . 12 . Terminals 22 | . 7 . 2 . 5 1 . 7 . Fabricators 3 | . . . . . . . . 3 . Repair Stations 3 | . . . . . 1 . . 2 . Recycling Units . | . . . . . . . . . . Scanalyzers 1 | . . . . . 1 . . . . Garrison Access 1 | . . . . . 1 . . . . Total Hacks 88 | . 22 1 2 . 25 6 . 32 . Successful 52 | . 9 1 1 . 16 4 . 21 . Failed 35 | . 13 . 1 . 9 2 . 10 . Catastrophic 7 | . 2 . . . 3 . . 2 . Database Lockouts 1 | . . . . . . . . 1 . Manual 48 | . 16 . 1 . 11 5 . 15 . Terminals 59 | . 22 . 2 . 13 6 . 16 . Fabricators 11 | . . . . . . . . 11 . Repair Stations 9 | . . . . . 4 . . 5 . Recycling Units . | . . . . . . . . . . Scanalyzers 6 | . . . . . 6 . . . . Garrison Access 2 | . . . . . 2 . . . . Terminal Hacks 23 | . 8 1 1 . 4 3 . 6 . Part Schematic 3 | . . . . . . . . 3 . Robot Analysis 2 | . 2 . . . . . . . . Prototype ID Bank 3 | . 2 . . . 1 . . . . Open Door 1 | . . 1 . . . . . . . Branch Access Points 3 | . 1 . . . . 1 . 1 . Terminal Index 3 | . 1 . . . . 1 . 1 . Repair Station Index 1 | . . . . . 1 . . . . Scanalyzer Index 2 | . . . . . 1 . . 1 . Unreport Threat 1 | . 1 . . . . . . . . Locate Traps 1 | . . . . . 1 . . . . Hauler Manifests 3 | . 1 . 1 . . 1 . . . Fabricator Hacks 6 | . . . . . . . . 6 . Load Schematic 3 | . . . . . . . . 3 . Build 3 | . . . . . . . . 3 . Repair Station Hacks 9 | . . . . . 4 . . 5 . Scan Component 5 | . . . . . 2 . . 3 . Repair 4 | . . . . . 2 . . 2 . Recycling Unit Hacks . | . . . . . . . . . . Scanalyzer 6 | . . . . . 6 . . . . Insert Component 2 | . . . . . 2 . . . . Analyze 4 | . . . . . 4 . . . . Garrison Access Hacks 1 | . . . . . 1 . . . . Seal Access 1 | . . . . . 1 . . . . Unauthorized Hacks 7 | . 1 . . . 1 1 . 4 . Terminals 5 | . 1 . . . 1 1 . 2 . Botnet 4 | . . . . . 1 1 . 2 . Operators 1 | . 1 . . . . . . . . Fabricators 2 | . . . . . . . . 2 . Siphon 2 | . . . . . . . . 2 . Repair Stations . | . . . . . . . . . . Recycling Units . | . . . . . . . . . . Scanalyzers . | . . . . . . . . . . Garrison Access . | . . . . . . . . . . Data Cores Recovered . | . . . . . . . . . . Used . | . . . . . . . . . . Hacking Detections 27 | . 7 . 1 . 7 1 . 11 . Full Trace Events 7 | . 1 . . . 2 . . 4 . Feedback Events 2 | . . . . . 1 . . 1 . Corruption 2 | . . . . . 1 . . 1 . Feedback Blocked . | . . . . . . . . . . Robot Schematics Acquired . | . . . . . . . . . . Robots Built . | . . . . . . . . . . Matter . | . . . . . . . . . . Time . | . . . . . . . . . . Total Robot Build Rating . | . . . . . . . . . . Part Schematics Acquired 5 | . . . . . 2 . . 3 . Parts Built 4 | . . . . . . . . 4 . Matter 332 | . . . . . . . . 332 . Time 142 | . . . . . . . . 142 . Total Part Build Rating 20 | . . . . . . . . 20 . Parts Repaired 4 | . . . . . 2 . . 2 . Time 188 | . . . . . 138 . . 50 . Parts Recycled . | . . . . . . . . . . Recycled Matter . | . . . . . . . . . . Retrieved Matter . | . . . . . . . . . . Retrieved Components . | . . . . . . . . . . Parts Scanalyzed 2 | . . . . . 2 . . . . Part Schematics Acquired 2 | . . . . . 2 . . . . Parts Damaged 1 | . . . . . 1 . . . . Bothacking | -11 -10 -10 -9 -9 -8 -7 -7 -7 -6 ------------ Run | Scr Mat Min Mat Min Mat Fac Was Fac Fac Used RIF Installer . | . . . . . . . . . . Robots Hacked . | . . . . . . . . . . Non-combat . | . . . . . . . . . . Combat . | . . . . . . . . . . Robot Hacks Applied . | . . . . . . . . . . Relay Couplers Released . | . . . . . . . . . . Robots Rewired . | . . . . . . . . . . Allies Hacked . | . . . . . . . . . . Hacks Repelled . | . . . . . . . . . . Allies | -11 -10 -10 -9 -9 -8 -7 -7 -7 -6 -------- Run | Scr Mat Min Mat Min Mat Fac Was Fac Fac Total Allies 23 | . . . . 5 . . 18 . . Largest Group 18 | . . . . 5 5 . 18 4 . Highest-Rated Group 456 | . . . . 88 88 . 456 129 . Highest-Rated Ally 35 | . . . . 31 31 . 35 35 . Total Orders . | . . . . . . . . . . Ally Attacks 217 | . . . . 3 33 . 168 13 . Total Damage 6588 | . . . . 62 500 . 5800 226 . Kills 28 | . . . . 3 5 . 17 3 . Allies Corrupted . | . . . . . . . . . . Allies Melted . | . . . . . . . . . . Intel | -11 -10 -10 -9 -9 -8 -7 -7 -7 -6 ------- Run | Scr Mat Min Mat Min Mat Fac Was Fac Fac Robot Analysis Total 2 | . 2 . . . . . . . . Derelict Logs Recovered 2 | . . 1 . 1 . . . . . Drone Launches . | . . . . . . . . . . Drone Recoveries . | . . . . . . . . . . Exploration | -11 -10 -10 -9 -9 -8 -7 -7 -7 -6 ------------- Run | Scr Mat Min Mat Min Mat Fac Was Fac Fac Turns Passed 10020 | 17 949 663 1477 1224 2029 355 721 2504 81 Spaces Moved 5620 | 3 568 471 767 563 931 199 568 1471 79 Core . | . . . . . . . . . . Treads 1008 | . . 23 70 . 442 142 . 331 . Legs . | . . . . . . . . . . Wheels 4533 | 3 568 448 697 563 489 57 568 1140 . Hover 79 | . . . . . . . . . 79 Flight . | . . . . . . . . . . Fastest Speed 68 | 90 90 120 130 140 110 120 110 110 68 Average Speed 134 | 90 117 123 143 140 140 148 119 141 68 Slowest Speed 230 | 90 120 200 220 140 230 160 120 230 68 Overloaded Moves . | . . . . . . . . . . Propulsion Burnouts . | . . . . . . . . . . Robots Hopped . | . . . . . . . . . . Cave-ins Triggered . | . . . . . . . . . . Exploration Rate (%) 52 | 2 69 90 73 95 67 5 97 24 5 Regions Visited 9 Branch Regions 2 Pre-discovered Areas 1 | . . 1 . . . . . . . Known Exits Taken 2 | . 1 . . . . . . 1 . Unknown Exits Taken 5 | 1 . 1 1 1 1 . . . . Scrap Searched 2 | . . 1 . 1 . . . . . Spaces Dug 39 | . . . . 10 . . . 26 3 Terrain Destroyed 112 | . . . 3 14 3 1 . 59 32 Melee 29 | . . . . . . . . 26 3 Projectile 6 | . . . . 5 . 1 . . . AOE 77 | . . . 3 9 3 . . 33 29 Terrain Rammed . | . . . . . . . . . . Walls Destroyed . | . . . . . . . . . . Machines Disabled . | . . . . . . . . . . Actions | -11 -10 -10 -9 -9 -8 -7 -7 -7 -6 --------- Run | Scr Mat Min Mat Min Mat Fac Was Fac Fac Total 7246 | 11 758 525 990 929 1353 244 608 1731 97 Wait 818 | . 110 10 84 315 192 8 11 88 . Move 5612 | 2 567 470 766 562 930 199 567 1470 79 Hop . | . . . . . . . . . . Pick Up 89 | . 14 8 20 2 13 6 7 19 . Fast Attach 32 | 1 1 1 3 . 9 2 5 9 1 Attach 45 | 2 1 2 3 2 10 4 3 12 6 Detach 8 | . . . . . 3 1 . 2 2 Swap 93 | 1 7 8 12 11 24 7 4 17 2 Drop 89 | 2 6 6 21 1 15 8 9 19 2 Fire 355 | 3 45 20 81 35 151 9 2 7 2 Melee 91 | . . . . . . . . 88 3 Ram 7 | . 7 . . . . . . . . Kick . | . . . . . . . . . . Crush 7 | . . . . 1 6 . . . . Escape Stasis . | . . . . . . . . . . Rewire . | . . . . . . . . . . Trap . | . . . . . . . . . . Miscellaneous . | . . . . . . . . . . Route ------- -11/Scrapyard -10/Materials (discovered 4 exits: *Mat x2 / *Min x2) -10/Mines (discovered 3 exits: *Mat x2 / [*Exi]) -9/Materials (discovered 4 exits: *Mat x2 / [*Min x2]) -9/Mines (discovered 2 exits: *Mat x2) -8/Materials (discovered 3 exits: *Fac / [*Sto x2]) -7/Factory (discovered 3 exits: *Fac / Low x2) -7/Waste -7/Factory (discovered 3 exits: *Fac / Low x2) -6/Factory History --------- Turn | Location | Event 15 | -11/Scrapyard | Discovered new exit (range 3) 18 | -11/Scrapyard | Entered Materials 318 | -10/Materials | Build established: Mutant 546 | -10/Materials | Discovered new exit (range 16) 765 | -10/Materials | Core integrity fell below 50% 784 | -10/Materials | Discovered new exit (range 14) 806 | -10/Materials | Identified exit to Mines 967 | -10/Materials | Entered Mines 978 | -10/Mines | Met a Derelict who couldn't figure out how to use a Trap Extractor 1060 | -10/Mines | Deemed a non-threat by the Exiles lab entrance 1060 | -10/Mines | Discovered new exit (range 5) 1091 | -10/Mines | Core integrity fell below 20% 1125 | -10/Mines | Discovered new exit (range 4) 1461 | -10/Mines | Build established: Scavenger-Mutant 1496 | -10/Mines | Discovered new exit (range 12) 1501 | -10/Mines | Learned location of Storage (-8) 1630 | -10/Mines | Entered Materials 1630 | -9/Materials | Evolved 2 slots: Utility x2 1926 | -9/Materials | Build established: Hauler-Mutant 2047 | -9/Materials | Discovered new exit (range 5) 2176 | -9/Materials | Discovered new exit (range 8) 2872 | -9/Materials | Discovered new exit (range 11) 3064 | -9/Materials | Discovered new exit (range 7) 3107 | -9/Materials | Entered Mines 3134 | -9/Mines | Excavation squad dispatched 3134 | -9/Mines | A large section of the Mines collapsed 3384 | -9/Mines | Excavation squad dispatched 3523 | -9/Mines | Found the Drone Emporium 3564 | -9/Mines | Found Prototype Device 3565 | -9/Mines | Identified Thief Drone Bay 3566 | -9/Mines | Destroyed 7 combat bots 3634 | -9/Mines | Excavation squad dispatched 3707 | -9/Mines | Learned Materials garrison access intel 3726 | -9/Mines | A weapon hastily lodged in a ceiling crevice suddenly fell to the ground 3749 | -9/Mines | Discovered new exit (range 5) 3757 | -9/Mines | Discovered new exit (range 14) 3764 | -9/Mines | Assisted by bots powering up and referring to "LRC-V3" 3901 | -9/Mines | Found a damaged Exp. Sensor Array with a note attached 3907 | -9/Mines | Found Prototype Device 4331 | -9/Mines | Entered Materials 4331 | -8/Materials | Accompanied by 5 allies 4331 | -8/Materials | Evolved 2 slots: Propulsion x1, Utility x1 4332 | -8/Materials | Loaded intel: 1 garrison access location 4336 | -8/Materials | Led the pair of lost Derelicts to an unsafe place 4472 | -8/Materials | Discovered new exit (range 15) 4629 | -8/Materials | Discovered new exit (range 16) 5002 | -8/Materials | Identified Exp. Sensor Array 5518 | -8/Materials | Discovered new exit (range 13) 6039 | -8/Materials | Repaired Broken Exp. Sensor Array 6079 | -8/Materials | Repaired Arm. Treads 6331 | -8/Materials | First assault squad dispatched 6360 | -8/Materials | Entered Factory 6360 | -7/Factory | Evolved 2 slots: Utility x2 6602 | -7/Factory | Identified exit to Lower Caves 6633 | -7/Factory | Discovered new exit (range 15) 6715 | -7/Factory | Sucked down chute 6715 | -7/Factory | Entered Waste 6726 | -7/Waste | Spotted C-40 Crusher 6727 | -7/Waste | Spotted C-40 Crusher 6748 | -7/Waste | Spotted C-40 Crusher 6761 | -7/Waste | Crushed by Compactor (1 part destroyed, 1 dropped) 6769 | -7/Waste | Spotted C-40 Crusher 6770 | -7/Waste | Spotted C-40 Crusher 6780 | -7/Waste | Warlord forces began an assault 6780 | -7/Waste | Allies destroyed C-40 Crusher 6787 | -7/Waste | Allies destroyed C-40 Crusher 6790 | -7/Waste | Allies destroyed C-40 Crusher 6791 | -7/Waste | Spotted C-40 Crusher 6801 | -7/Waste | Allies destroyed C-40 Crusher 6809 | -7/Waste | Allies destroyed C-40 Crusher 6822 | -7/Waste | Allies destroyed C-40 Crusher 6832 | -7/Waste | Found Damper Plating 6892 | -7/Waste | Build established: Hacker-Mutant 6942 | -7/Waste | Found Imp. Powered Armor 6945 | -7/Waste | Discovered new exit (range 15) 7436 | -7/Waste | Entered Factory 7436 | -7/Factory | Accompanied by 4 allies 8373 | -7/Factory | Discovered new exit (range 10) 8670 | -7/Factory | Fabricated Cmb. Airjet? 8840 | -7/Factory | Local fabrication network quarantined 8856 | -7/Factory | Fabricated Cmb. Airjet? 8914 | -7/Factory | Central database locked down 9174 | -7/Factory | Repaired Imp. Powered Armor 9480 | -7/Factory | First assault squad dispatched 9733 | -7/Factory | Repaired Arm. Huge Wheel 9798 | -7/Factory | Identified exit to Factory 9940 | -7/Factory | Entered another Factory area 9940 | -6/Factory | Evolved 2 slots: Propulsion x1, Utility x1 10021 | -6/Factory | Self-destructed Last Messages --------------- 09940_ Dropped Arm. Treads. 09941_ Dropped Arm. Huge Wheel. 09961_ Acquired Unknown Energy Cannon. 09961_ Identified Proton Cannon. 09978_ K-01 Serf collects debris. 09986_ S-27 Virus destroyed. 09987_ K-01 Serf collects debris. 09989_ K-01 Serf destroyed. 09989_ Door malfunctions. 09989_ Chain reaction triggered in Fission Core. 09989_ Fabricator disabled. 09989_ Chain reaction triggered in Fission Core. 09997_ Acquired 21 matter. 09998_ Fusion Modulator explodes. 09998_ K-01 Serf destroyed. 09998_ Fusion Modulator explodes. 10015_ Penetrated by Slug. 10015_ Slug penetrates Wall. 10018_ Slug penetrates Door. 10018_ Subcomponent Replicator disabled. Map ----- +----------------------------------------------------+ | ?????????????????????????????? | | ?????????????????????????????? | | ?????????????????????????????? | | ?????????????????????????????? | | ?????????????????????????????? | | ?????????????????????????????? | | ?????????????????????????????? | | ????????? ?????????????????? | | ????????? ???????????????? | | ????????? #??????????????? | | ????????# #??????????????? | | ????????# #??????????????? | | ????????# #??????????????? | | ######### #??????????????? | | # "" # #??????????????? | | # ""S # #??????????????? | | # "" # #??????????????? | | # # #??????????????? | | # !# #??????????????? | | # "" # ########## ????? | | # "" # ???? | | # """ # k ???? | | # "" ; hh ?? | | # """ # ?? | | # # ?? | | # @ ### ########### #? | | # ! #?# #?????????# ## | | # #?# #?????????# | | # !/[ #?# #?????????# | | # !/[ #?# #?????????# " | | #! /[[ ###+###########^ "" | | ########## # "F | | ?????????# """""" # " | | ?????????# """""" # " | | ?????????# """""" # | | ?????????# """""" # | | ?????????# / | | ?????????# """ # / | | ?????????# """"" # = | | ?????????# """"" # | | ?????????# # ^ | | ?????????# # ** | | ?????????# # | | ?????????############## * | | ??????????????????????# | | ??????????????????????# | | ??????????????????????# ###### | | ???????????????######## ###### | | ???????????????# # | | ???????????????# # | +----------------------------------------------------+ Best States ------------- Heat Dissipation 53 Energy Generation 18 Energy Capacity 290 Matter Stores 300 Matter Capacity 300 Sight Range 16 Robot Scan Range 30 Terrain Scan Density 10 Armor Coverage 600 Evasion (%) 51 Targeting Accuracy 5 Recoil Reduction 3 Offensive Hacking 20 Defensive Hacking 10 Item Schematics ----------------- Exp. Sensor Array | -8/Materials | Scanalyzed Hacking Suite | -8/Materials | Scanalyzed Hvy. Pick | -7/Factory | Hacked Cmb. Airjet | -7/Factory | Hacked Spear | -7/Factory | Hacked Robot Schematics ------------------ None Fabricated ------------ Cmb. Airjet | x2 | -7/Factory Cmb. Airjet | x2 | -7/Factory Alien Tech Used ----------------- None Achievements -------------- None Challenges ------------ None Game ------ Seed ThunderHardlightMagmablaster Manual? 0 Play Time 01:06:22 Cumulative 165.1 hours Start 2020.11.20 @ 16:07:45 End 2020.11.20 @ 17:12:45 Sessions 1 Manual Loads 0 Difficulty Rogue Special Mode Halloween2020/ForbiddenLore Game No. 84 Rogue 84 Adventurer 0 Explorer 0 Win Type - Total 1 Types 1/0/0/0/0/0/0/0/0 Lore% 55 Gallery% 62 Achievement% 50 Wizard Run 0 Options --------- ASCII 1 Keyboard 1 Movement Vi Keybinds 0 Fullscreen 1 Font 16/Terminus Map View 75x55 Tactical HUD 1 Map Filters NONE Filters NONE Steam 1 RUN: 5d0d966e-35a4-4acc-ab76-c4fe87dcc4ba